bitfinex/quotes_SOLUSD_20240616
["timestamp","ask_amount","ask_price","bid_price","bid_amount"]
[1718508445415,12.84239484,144.42,144.4,0.287]
[1718508445617,5.62,144.42,144.4,0.287]
[1718508449039,5.62,144.43,144.4,0.287]
[1718508450341,2.5617,144.44,144.4,0.287]
[1718508450642,5.62,144.43,144.4,0.287]
[1718508451929,8.1818,144.43,144.4,0.287]
[1718508459457,5.62,144.43,144.4,0.287]
[1718508461455,8.1818,144.43,144.4,0.287]
[1718508462448,5.62,144.43,144.4,0.287]
[1718508463358,5.62,144.42,144.4,0.287]
[1718508463538,5.62,144.41,144.4,0.287]
[1718508464828,0.17,144.46,144.4,0.287]
[1718508465043,5.62,144.41,144.4,0.287]
[1718508471161,5.62,144.42,144.4,0.287]
[1718508471549,23.0547,144.44,144.4,0.287]
[1718508471747,5.62,144.42,144.4,0.287]
[1718508481397,8.1819,144.42,144.4,0.287]
[1718508481558,8.1821,144.41,144.4,0.287]
[1718508482281,5.62,144.41,144.4,0.287]
[1718508482677,20.9927,144.41,144.4,0.287]
[1718508483867,13.3063,144.41,144.4,0.287]
[1718508484580,20.9927,144.41,144.4,0.287]
[1718508484880,13.3063,144.41,144.4,0.287]
[1718508486390,31.2412,144.41,144.4,0.287]
[1718508486579,36.8612,144.41,144.4,0.287]
[1718508488182,31.2412,144.41,144.4,0.287]
[1718508490092,36.8612,144.41,144.4,0.287]
[1718508492408,44.07943272,144.41,144.4,0.287]
[1718508493306,26.14453272,144.41,144.4,0.287]
[1718508493795,33.83093272,144.41,144.4,0.287]
[1718508494991,26.14453272,144.41,144.4,0.287]
[1718508496711,44.24943272,144.41,144.4,0.287]
[1718508496890,44.58943272,144.41,144.4,0.287]
[1718508497296,61.44943272,144.41,144.4,0.287]
[1718508498327,38.39033272,144.41,144.4,0.287]
[1718508499410,43.51453272,144.41,144.4,0.287]
[1718508499830,61.44943272,144.41,144.4,0.287]
[1718508505426,61.61943272,144.41,144.4,0.287]
[1718508507012,2.5626,144.38,144.32,21.9019]
[1718508507267,5.62,144.34,144.32,15.8895]
[1718508507613,5.62,144.33,144.32,15.8895]
[1718508509408,5.62,144.34,144.32,15.8895]
[1718508517665,5.62,144.34,144.29,21.8607]
[1718508518147,5.62,144.34,144.29,27.4807]
[1718508521433,2.563,144.36,144.29,27.4807]
[1718508521633,5.62,144.34,144.29,27.4807]
[1718508522437,5.62,144.34,144.3,1.20708452]
[1718508522758,5.62,144.34,144.29,27.4807]
[1718508524076,5.62,144.34,144.29,21.8607]
[1718508527567,5.62,144.35,144.29,27.4807]
[1718508529787,5.62,144.34,144.29,21.8607]
[1718508531867,5.62,144.35,144.29,21.8607]
[1718508533579,5.62,144.34,144.29,21.8607]
[1718508535521,5.62,144.33,144.29,21.8607]
[1718508540561,5.62,144.34,144.29,21.8607]
[1718508545098,5.62,144.35,144.29,27.4807]
[1718508545584,7.6877,144.39,144.3,5.96]
[1718508545790,5.62,144.36,144.3,0.34]
[1718508545970,5.62,144.36,144.3,5.96]
[1718508548088,15.376,144.38,144.3,5.96]
[1718508548288,5.62,144.36,144.3,5.96]
[1718508549093,15.376,144.38,144.3,5.96]
[1718508549286,5.62,144.36,144.3,5.96]
[1718508550295,5.62,144.36,144.3,0.34]
[1718508550473,5.62,144.36,144.3,5.96]
[1718508551090,5.62,144.35,144.3,0.34]
[1718508551292,5.62,144.35,144.3,1.72378396]
[1718508553433,5.62,144.36,144.3,7.34378396]
[1718508553966,5.62,144.36,144.3,5.96]
[1718508557900,7.6882,144.38,144.3,5.96]
[1718508558108,5.62,144.36,144.3,5.96]
[1718508559888,5.62,144.37,144.3,0.34]
[1718508560097,2.5628,144.38,144.31,5.62]
[1718508560282,5.62,144.37,144.31,5.62]
[1718508560472,5.62,144.37,144.32,1.38551831]
[1718508562294,5.62,144.37,144.3,1.72551831]
[1718508562797,8.1828,144.37,144.3,1.72551831]
[1718508565898,13.3085,144.37,144.3,1.72551831]
[1718508567899,20.9971,144.37,144.3,1.72551831]
[1718508570697,18.4343,144.37,144.3,1.72551831]
[1718508570885,2.563,144.36,144.3,1.72551831]
[1718508571409,31.2487,144.37,144.3,1.72551831]
[1718508572692,28.6857,144.37,144.3,1.72551831]
[1718508572900,2.563,144.36,144.3,1.72551831]
[1718508573881,13.3086,144.37,144.3,1.72551831]
[1718508574087,20.9972,144.37,144.3,1.72551831]
[1718508575389,7.6882,144.38,144.31,0.34]
[1718508575610,2.5627,144.38,144.33,15.8882]
[1718508575795,2.5627,144.38,144.34,1.38534638]
[1718508576606,7.6881,144.38,144.34,1.38534638]
[1718508577616,15.3761,144.38,144.34,1.38534638]
[1718508579411,15.3761,144.38,144.33,15.8882]
[1718508579412,2.5628,144.37,144.33,15.8882]
[1718508581016,5.62,144.36,144.33,15.8882]
[1718508581213,5.62,144.35,144.33,15.8882]
[1718508583302,5.62,144.35,144.3,9.2004073]
[1718508583500,15.3772,144.37,144.3,30.7086073]
[1718508583501,5.62,144.36,144.3,30.7086073]
[1718508584516,2.5643,144.29,144.22,5.62]
[1718508584684,2.5643,144.29,144.2,22.0765]
[1718508584685,23.0755,144.31,144.23,5.62]
[1718508584883,2.5641,144.3,144.23,5.62]
[1718508585083,23.0755,144.31,144.23,5.62]
[1718508585084,5.62,144.29,144.23,5.62]
[1718508585510,5.62,144.29,144.24,5.62]
[1718508587336,5.62,144.29,144.23,0.17]
[1718508587337,5.62,144.29,144.23,5.79]
[1718508587625,5.62,144.29,144.22,0.17]
[1718508587626,21.5204,144.28,144.22,5.70251723]
[1718508587910,5.62,144.26,144.18,122.0765]
[1718508588116,5.62,144.26,144.21,5.62]
[1718508589326,7.6925,144.3,144.22,5.79]
[1718508589489,5.62,144.27,144.22,5.79]
[1718508590108,5.62,144.28,144.22,5.79]
[1718508590906,5.62,144.23,144.17,0.8587394]
[1718508591107,44.3404,144.27,144.17,0.8587394]
[1718508591108,5.62,144.21,144.17,0.8587394]
[1718508591325,5.62,144.23,144.17,22.3669394]
[1718508591531,5.62,144.23,144.18,5.62]
[1718508592304,5.62,144.23,144.19,0.17]
[1718508592924,5.62,144.23,144.17,16.7469394]
[1718508593136,17.6433,144.27,144.19,5.62]
[1718508593423,17.6433,144.27,144.17,137.5369394]
[1718508593424,5.62,144.25,144.2,5.62]
[1718508594324,5.62,144.25,144.21,0.17]
[1718508594625,23.0806,144.28,144.21,0.17]
[1718508594814,2.566,144.19,144.17,0.8587394]
[1718508594999,6.4417,144.23,144.17,0.8587394]
[1718508595000,5.62,144.18,144.17,0.8587394]
[1718508595435,7.6976,144.2,144.17,0.8587394]
[1718508595592,5.62,144.18,144.17,0.8587394]
[1718508597103,15.3932,144.22,144.17,0.8587394]
[1718508597315,5.62,144.18,144.17,0.8587394]
[1718508600522,5.62,144.21,144.17,0.8587394]
[1718508600827,5.62,144.19,144.17,0.8587394]
[1718508601058,5.62,144.18,144.17,0.8587394]
[1718508601197,5.62,144.19,144.17,0.8587394]
[1718508601403,5.62,144.18,144.17,0.8587394]
[1718508602407,7.6968,144.22,144.17,0.8587394]
[1718508602408,5.62,144.19,144.17,0.8587394]
[1718508604034,6.336,144.27,144.17,0.8587394]
[1718508604202,5.62,144.22,144.17,6.4787394]
[1718508604616,5.62,144.22,144.17,0.8587394]
[1718508604912,5.62,144.21,144.17,0.8587394]
[1718508606216,7.22097194,144.26,144.17,0.8587394]
[1718508606415,5.62,144.22,144.18,0.17]
[1718508606616,5.62,144.23,144.18,0.17]
[1718508608209,5.62,144.23,144.18,6.13]
[1718508608832,22.48,144.27,144.19,0.17]
[1718508609008,2.5644,144.28,144.19,0.17]
[1718508609009,7.6933,144.28,144.2,5.62]
[1718508609312,5.62,144.25,144.2,5.62]
[1718508609508,7.694,144.27,144.19,6.13]
[1718508609509,5.62,144.24,144.19,6.13]
[1718508609712,5.62,144.24,144.19,0.51]
[1718508610594,5.62,144.24,144.2,0.17]
[1718508611130,5.62,144.25,144.2,6.13]
[1718508612237,5.62,144.25,144.2,0.51]
[1718508614349,25.6448,144.28,144.2,6.13]
[1718508614656,5.62,144.26,144.2,6.13]
[1718508615012,7.22342631,144.3,144.2,6.13]
[1718508615013,7.22342631,144.3,144.22,5.62]
[1718508615219,5.62,144.28,144.23,5.62]
[1718508615724,5.62,144.28,144.22,5.62]
[1718508616733,5.62,144.27,144.22,5.62]
[1718508617230,5.62,144.27,144.23,0.17]
[1718508617430,5.62,144.28,144.23,5.79]
[1718508618059,7.22441513,144.33,144.24,0.51]
[1718508618239,5.62,144.3,144.25,0.17]
[1718508619252,5.62,144.29,144.22,15.6295]
[1718508619457,5.62,144.28,144.23,0.34]
[1718508621237,5.62,144.28,144.23,5.96]
[1718508621946,5.62,144.29,144.24,0.34]
[1718508622147,5.62,144.29,144.25,0.17]
[1718508622336,5.62,144.3,144.25,0.17]
[1718508623756,5.62,144.29,144.25,0.17]
[1718508624329,5.62,144.28,144.25,0.17]
[1718508626755,5.62,144.29,144.25,0.17]
[1718508629264,5.62,144.3,144.25,0.17]
[1718508631946,7.6912,144.32,144.25,0.17]
[1718508632151,5.62,144.3,144.25,0.17]
[1718508632664,5.62,144.3,144.25,5.79]
[1718508633246,5.62,144.3,144.25,0.17]
[1718508635769,5.62,144.28,144.23,0.17]
[1718508636053,2.5641,144.3,144.23,0.68]
[1718508636173,5.62,144.28,144.23,6.3]
[1718508636669,25.6401,144.31,144.23,6.3]
[1718508636670,5.62,144.29,144.23,6.3]
[1718508642171,5.62,144.3,144.24,5.62]
[1718508642397,5.62,144.3,144.25,0.17]
[1718508642576,2.5638,144.32,144.25,0.17]
[1718508642871,5.62,144.3,144.25,0.17]
[1718508644758,5.62,144.29,144.25,0.17]
[1718508645484,15.3825,144.32,144.25,0.17]
[1718508645825,5.62,144.3,144.25,5.79]
[1718508646148,5.62,144.3,144.25,0.17]
[1718508649686,5.62,144.29,144.25,0.17]
[1718508654988,5.62,144.28,144.22,21.26622811]
[1718508655215,5.62,144.26,144.22,21.26622811]
[1718508656388,5.62,144.27,144.22,21.26622811]
[1718508657263,10.2558,144.31,144.22,26.88622811]
[1718508657572,5.62,144.27,144.22,26.88622811]
[1718508657780,5.62,144.27,144.23,0.51]
[1718508658680,2.5643,144.29,144.23,0.51]
[1718508658984,5.62,144.26,144.22,15.6295]
[1718508659792,2.5645,144.28,144.22,15.6295]
[1718508659976,5.62,144.26,144.22,15.6295]
[1718508661296,5.62,144.25,144.22,15.6295]
[1718508661594,5.62,144.23,144.18,27.23]
[1718508661791,23.5728,144.27,144.18,27.23]
[1718508661792,13.3141,144.27,144.18,27.23]
[1718508662084,30.1741,144.27,144.18,27.23]
[1718508662668,7.6945,144.26,144.18,21.61]
[1718508662876,2.5648,144.26,144.19,0.51]
[1718508663067,5.62,144.23,144.19,0.51]
[1718508663291,2.5647,144.27,144.19,0.51]
[1718508663491,5.62,144.23,144.19,0.51]
[1718508664193,5.62,144.24,144.19,0.51]
[1718508665767,13.314,144.27,144.19,0.51]
[1718508665768,38.811,144.29,144.2,5.62]
[1718508665974,5.62,144.25,144.21,0.51]
[1718508668595,5.62,144.26,144.21,0.51]
[1718508670076,5.62,144.26,144.21,0.17]
[1718508670303,5.62,144.26,144.2,0.17]
[1718508670304,5.62,144.24,144.2,0.17]
[1718508670501,5.62,144.24,144.2,0.68]
[1718508672414,5.62,144.25,144.2,0.68]
[1718508674513,7.22858288,144.29,144.2,6.3]
[1718508674684,5.62,144.27,144.23,0.17]
[1718508674883,5.62,144.27,144.23,0.68]
[1718508677279,7.22608001,144.32,144.23,22.2279]
[1718508677479,5.62,144.3,144.24,5.62]
[1718508677787,5.62,144.3,144.25,0.51]
[1718508679199,5.62,144.3,144.25,6.13]
[1718508680288,2.5638,144.32,144.25,6.13]
[1718508680606,5.62,144.3,144.25,6.13]
[1718508681011,2.5638,144.32,144.25,6.13]
[1718508681201,7.22581424,144.35,144.26,5.79]
[1718508681408,7.22581424,144.35,144.27,5.96]
[1718508681409,22.60541424,144.35,144.27,5.96]
[1718508681601,5.62,144.33,144.28,0.34]
[1718508681795,2.5635,144.33,144.28,0.34]
[1718508681995,5.62,144.32,144.28,0.34]
[1718508682203,5.62,144.33,144.28,0.34]
[1718508682404,8.1835,144.33,144.28,0.34]
[1718508682600,5.62,144.33,144.28,0.34]
[1718508684722,2.5635,144.34,144.28,0.34]
[1718508684924,5.62,144.33,144.28,0.34]
[1718508685799,5.62,144.33,144.29,0.17]
[1718508687218,9.78901424,144.35,144.29,0.17]
[1718508687464,5.62,144.33,144.29,0.17]
[1718508687922,5.12,144.33,144.29,0.17]
[1718508689928,5.62,144.3,144.2,100.0]
[1718508690093,5.62,144.24,144.2,100.0]
[1718508692226,5.62,144.21,144.17,0.8587394]
[1718508692486,15.9888,144.24,144.17,0.8587394]
[1718508692487,5.62,144.18,144.17,0.8587394]
[1718508697336,15.2368,144.18,144.17,0.8587394]
[1718508697539,23.423,144.18,144.17,0.8587394]
[1718508697837,5.62,144.18,144.17,0.8587394]
[1718508698034,9.1164,144.21,144.17,0.8587394]
[1718508698241,5.62,144.18,144.17,0.8587394]
[1718508700462,7.6977,144.2,144.17,0.8587394]
[1718508700638,2.5658,144.2,144.17,0.8587394]
[1718508700827,5.62,144.18,144.17,0.8587394]
[1718508707855,8.1862,144.18,144.17,0.8587394]
[1718508708165,5.62,144.18,144.17,0.8587394]
[1718508708377,8.1862,144.18,144.17,0.8587394]
[1718508708575,5.62,144.18,144.17,0.8587394]
[1718508711563,31.2822,144.18,144.17,0.8587394]
[1718508711767,5.62,144.18,144.17,0.8587394]
[1718508713893,25.0459,144.2,144.17,0.8587394]
[1718508714187,45.5736,144.2,144.17,0.8587394]
[1718508714496,48.1395,144.2,144.17,0.8587394]
[1718508715266,5.62,144.18,144.17,0.8587394]
[1718508721511,2.5661,144.19,144.17,0.8587394]
[1718508721681,5.62,144.18,144.17,0.8587394]
[1718508724386,21.0173,144.18,144.17,0.8587394]
[1718508724707,13.3186,144.18,144.17,0.8587394]
[1718508724877,8.1862,144.18,144.17,0.8587394]
[1718508725298,5.62,144.18,144.17,0.8587394]
[1718508726792,8.1862,144.18,144.17,0.8587394]
[1718508728610,13.3186,144.18,144.17,0.8587394]
[1718508729010,21.0173,144.18,144.17,0.8587394]
[1718508729185,31.2822,144.18,144.17,0.8587394]
[1718508729806,25.6622,144.18,144.17,0.8587394]
[1718508729979,31.2822,144.18,144.17,0.8587394]
[1718508731589,31.7922,144.18,144.17,0.8587394]
[1718508731800,2.5668,144.15,144.07,16.3974]
[1718508732018,8.1872,144.13,144.05,5.20613042]
[1718508732304,25.6734,144.12,144.02,100.8587394]
[1718508732548,12.8343,144.15,144.05,5.62]
[1718508732701,5.62,144.11,144.05,5.62]
[1718508732911,5.62,144.11,144.05,3.62]
[1718508733213,5.62,144.11,144.04,100.0]
[1718508733519,2.5669,144.14,144.05,5.62]
[1718508733520,5.62,144.1,144.05,5.62]
[1718508733683,25.0471,144.13,144.05,0.17]
[1718508733878,25.0471,144.13,144.05,5.79]
[1718508734117,22.48,144.13,144.05,5.79]
[1718508734318,2.5668,144.15,144.06,5.62]
[1718508734496,2.5668,144.15,144.07,16.5674]
[1718508734497,5.62,144.11,144.07,16.5674]
[1718508734691,5.62,144.11,144.07,16.7374]
[1718508735117,5.62,144.12,144.07,16.7374]
[1718508735320,5.62,144.11,144.07,16.7374]
[1718508736049,31.9655,144.16,144.07,22.3574]
[1718508736054,5.62,144.12,144.07,22.3574]
[1718508738291,5.62,144.12,144.07,16.7374]
[1718508738695,7.7008,144.14,144.07,16.7374]
[1718508738919,5.62,144.12,144.07,16.7374]
[1718508741203,5.62,144.11,144.07,16.3974]
[1718508741406,5.62,144.1,144.07,16.3974]
[1718508742724,5.62,144.11,144.07,16.3974]
[1718508743917,7.7009,144.14,144.07,16.3974]
[1718508744109,5.62,144.11,144.07,16.3974]
[1718508744796,2.5668,144.15,144.07,16.3974]
[1718508745004,5.62,144.12,144.07,16.3974]
[1718508745919,2.5668,144.15,144.07,16.3974]
[1718508746441,5.62,144.12,144.07,16.3974]
[1718508747397,5.62,144.12,144.08,0.17]
[1718508749435,7.7009,144.14,144.08,0.17]
[1718508749727,5.62,144.12,144.08,0.17]
[1718508752740,5.62,144.12,144.07,16.3974]
[1718508755825,7.7009,144.14,144.07,16.3974]
[1718508756342,5.62,144.12,144.07,16.3974]
[1718508758847,5.62,144.1,144.07,16.3974]
[1718508760715,5.62,144.09,144.03,34.10722594]
[1718508760932,5.62,144.09,144.04,5.79]
[1718508761142,5.62,144.1,144.04,5.79]
[1718508761445,5.62,144.1,144.04,5.62]
[1718508764443,2.5674,144.12,144.04,5.62]
[1718508765417,5.62,144.1,144.04,5.62]
[1718508767048,2.5674,144.12,144.04,5.62]
[1718508767343,48.1522,144.13,144.04,5.62]
[1718508768442,25.6722,144.13,144.05,5.62]
[1718508768655,5.62,144.1,144.05,5.62]
[1718508771447,5.62,144.11,144.05,5.62]
[1718508771860,30.31967937,144.14,144.06,5.62]
[1718508772154,2.567,144.14,144.06,5.62]
[1718508772358,5.62,144.12,144.06,5.62]
[1718508774118,23.1025,144.14,144.06,5.62]
[1718508774249,12.8341,144.15,144.06,5.62]
[1718508774455,2.5668,144.15,144.08,20.9241]
[1718508774656,5.62,144.14,144.08,20.9241]
[1718508775561,5.62,144.13,144.08,20.9241]
[1718508776560,5.62,144.13,144.08,15.3041]
[1718508778162,15.4018,144.14,144.08,15.3041]
[1718508778359,7.701,144.14,144.08,15.3041]
[1718508778662,5.62,144.13,144.08,15.3041]
[1718508780567,8.1871,144.13,144.08,15.3041]
[1718508780865,5.62,144.12,144.08,15.3041]
[1718508783767,5.1332,144.16,144.09,5.62]
[1718508783977,13.3203,144.15,144.09,5.62]
[1718508784158,2.5669,144.14,144.09,5.62]
[1718508784366,8.1869,144.14,144.09,5.62]
[1718508785185,8.1869,144.14,144.08,27.4969]
[1718508785476,5.62,144.13,144.08,27.4969]
[1718508786981,8.1871,144.13,144.08,27.4969]
[1718508787873,5.62,144.13,144.08,21.8769]
[1718508788068,8.1871,144.13,144.08,21.8769]
[1718508788383,5.62,144.13,144.08,21.8769]
[1718508788695,8.1871,144.13,144.08,21.8769]
[1718508788861,5.62,144.12,144.08,21.8769]
[1718508789996,5.62,144.12,144.08,15.3041]
[1718508790169,5.62,144.11,144.05,5.62]
[1718508790552,8.1874,144.11,144.05,5.62]
[1718508790756,5.62,144.11,144.05,5.62]
[1718508791583,5.62,144.11,144.04,22.267]
[1718508791782,5.62,144.11,144.05,5.62]
[1718508792874,5.62,144.11,144.04,22.267]
[1718508793064,5.62,144.11,144.05,5.62]
[1718508794277,5.62,144.11,144.04,22.267]
[1718508795184,5.62,144.11,144.05,5.62]
[1718508796474,5.62,144.11,144.04,22.267]
[1718508796661,5.62,144.11,144.05,5.62]
[1718508804180,2.5672,144.13,144.06,5.62]
[1718508804181,5.62,144.12,144.06,5.62]
[1718508804571,25.6701,144.14,144.07,5.62]
[1718508804572,5.62,144.13,144.07,5.62]
[1718508805008,8.1871,144.13,144.07,5.62]
[1718508805167,8.1873,144.12,144.06,5.62]
[1718508805366,5.62,144.11,144.06,5.62]
[1718508805589,5.62,144.11,144.05,6.3]
[1718508806898,5.62,144.11,144.05,0.17]
[1718508807103,8.1874,144.11,144.04,22.267]
[1718508807397,5.62,144.11,144.05,5.62]
[1718508808501,5.62,144.1,144.04,16.2531]
[1718508808678,5.62,144.09,144.04,5.62]
[1718508812199,5.62,144.1,144.04,5.62]
[1718508813704,8.1876,144.1,144.04,5.62]
[1718508815408,5.62,144.1,144.04,5.62]
[1718508815600,8.1876,144.1,144.04,5.62]
[1718508816467,5.62,144.09,144.04,5.62]
[1718508819826,5.62,144.1,144.04,5.62]
[1718508821319,5.1355,144.1,144.03,0.51]
[1718508821534,5.62,144.09,144.04,5.62]
[1718508823102,5.62,144.09,144.03,0.51]
[1718508823310,5.62,144.08,144.03,0.17]
[1718508823520,5.62,144.08,144.03,5.62]
[1718508823829,2.5677,144.1,144.03,5.62]
[1718508824024,5.62,144.09,144.03,5.62]
[1718508824731,5.62,144.09,144.02,6.47465289]
[1718508824931,5.62,144.09,144.04,5.62]
[1718508830933,5.62,144.09,144.02,6.47465289]
[1718508831112,5.62,144.09,144.03,5.62]
[1718508832930,5.62,144.09,144.02,6.47465289]
[1718508833237,5.62,144.09,144.03,5.62]
[1718508833454,5.62,144.08,144.02,12.09465289]
[1718508835021,5.62,144.08,144.02,6.47465289]
[1718508835329,5.62,144.08,144.02,12.09465289]
[1718508836033,5.62,144.08,144.02,6.47465289]
[1718508836241,5.62,144.06,144.02,0.8587394]
[1718508837714,25.6786,144.09,144.02,0.8587394]
[1718508838010,5.62,144.07,144.02,0.8587394]
[1718508839930,24.0925,144.06,144.02,0.8587394]
[1718508840117,5.62,144.03,144.02,0.8587394]
[1718508840640,22.5177,144.07,144.02,0.8587394]
[1718508840819,5.62,144.06,144.02,0.8587394]
[1718508841144,5.62,144.05,144.02,0.8587394]
[1718508841655,5.62,144.03,144.02,0.8587394]
[1718508841941,5.62,144.04,144.02,0.8587394]
[1718508843815,40.4957,144.07,144.02,0.8587394]
[1718508843816,48.2004,144.07,144.02,0.8587394]
[1718508844011,5.62,144.05,144.02,0.8587394]
[1718508844316,13.3257,144.05,144.02,0.8587394]
[1718508844516,8.1886,144.05,144.02,0.8587394]
[1718508844712,5.62,144.04,144.02,0.8587394]
[1718508846938,5.62,144.05,144.02,0.8587394]
[1718508848260,2.5683,144.06,144.02,0.8587394]
[1718508848551,5.62,144.05,144.02,0.8587394]
[1718508849172,7.705,144.06,144.02,0.8587394]
[1718508849317,8.1887,144.04,144.02,0.8587394]
[1718508849521,5.62,144.04,144.02,0.8587394]
[1718508849743,8.1887,144.04,144.02,0.56889419]
[1718508850019,5.62,144.04,144.02,0.56889419]
[1718508850256,17.9812,144.04,144.02,0.56889419]
[1718508850542,2.5687,144.04,144.02,0.56889419]
[1718508850749,5.62,144.03,144.02,0.56889419]
[1718508850937,2.5687,144.04,144.02,0.56889419]
[1718508851246,5.62,144.04,144.02,0.56889419]
[1718508851718,8.1887,144.04,144.02,0.56889419]
[1718508852057,5.62,144.03,144.02,0.56889419]
[1718508852347,21.0334,144.03,144.02,0.56889419]
[1718508852563,31.309,144.03,144.02,0.56889419]
[1718508853335,23.6023,144.03,144.02,0.56889419]
[1718508853516,5.62,144.03,144.02,0.56889419]
[1718508853721,7.7063,144.04,144.02,0.56889419]
[1718508853957,5.62,144.03,144.02,0.56889419]
[1718508854746,2.5688,144.04,144.02,0.56889419]
[1718508854948,5.62,144.03,144.02,0.56889419]
[1718508855131,2.5686,144.05,144.02,0.56889419]
[1718508855336,5.62,144.03,144.02,0.56889419]
[1718508855539,5.62,144.04,144.02,0.56889419]
[1718508857445,2.5686,144.05,144.02,0.56889419]
[1718508857651,5.62,144.04,144.02,0.56889419]
[1718508857821,2.5686,144.05,144.02,0.56889419]
[1718508858023,5.62,144.04,144.02,0.56889419]
[1718508858468,2.5685,144.05,144.02,0.56889419]
[1718508858762,5.62,144.04,144.02,0.56889419]
[1718508860052,2.5685,144.05,144.02,0.56889419]
[1718508860346,5.62,144.04,144.02,0.56889419]
[1718508861258,2.5687,144.04,144.02,0.56889419]
[1718508861458,23.1172,144.05,144.02,0.56889419]
[1718508861638,8.1887,144.04,144.02,0.56889419]
[1718508861833,5.62,144.04,144.02,0.56889419]
[1718508862142,8.1887,144.04,144.02,0.56889419]
[1718508862647,5.62,144.04,144.02,0.56889419]
[1718508864467,7.7058,144.05,144.02,0.56889419]
[1718508864754,15.2143,144.11,144.02,0.56889419]
[1718508864939,5.62,144.08,144.02,6.18889419]
[1718508865331,2.568,144.08,144.02,6.18889419]
[1718508865535,5.62,144.08,144.02,0.56889419]
[1718508865754,7.7041,144.08,144.03,5.62]
[1718508865929,8.1881,144.08,144.03,5.62]
[1718508866542,13.3241,144.08,144.03,5.62]
[1718508866962,31.3002,144.08,144.02,6.18889419]
[1718508867264,5.62,144.07,144.02,6.18889419]
[1718508867676,28.7338,144.07,144.02,0.56889419]
[1718508867967,8.1882,144.07,144.02,0.56889419]
[1718508868542,2.5681,144.08,144.02,6.18889419]
[1718508868755,5.62,144.07,144.02,6.18889419]
[1718508869158,7.7037,144.09,144.03,5.62]
[1718508869463,5.62,144.08,144.03,5.62]
[1718508869960,8.1879,144.09,144.03,5.62]
[1718508870266,8.188,144.08,144.03,5.62]
[1718508870442,13.324,144.08,144.02,6.18889419]
[1718508870642,21.028,144.08,144.02,6.18889419]
[1718508870955,21.028,144.08,144.02,0.56889419]
[1718508871268,13.324,144.08,144.02,6.18889419]
[1718508872170,8.188,144.08,144.02,6.18889419]
[1718508872476,5.62,144.07,144.02,6.18889419]
[1718508873552,8.188,144.08,144.02,6.18889419]
[1718508873869,5.62,144.08,144.02,6.18889419]
[1718508874057,2.5679,144.09,144.02,6.18889419]
[1718508874260,5.62,144.08,144.03,5.62]
[1718508874956,7.7032,144.1,144.03,5.62]
[1718508875075,13.3232,144.1,144.04,5.62]
[1718508875841,2.5678,144.09,144.04,5.62]
[1718508876670,31.2969,144.1,144.04,5.62]